[Event "AI Cup Div-3 2023"]
[Site "Online"]
[Date "2023.09.26"]
[Round "3.1"]
[White "Martinez Alcantara, Jose Eduardo"]
[Black "Mamedov, Rauf"]
[Result "1/2-1/2"]
[Annotator "ChessBase"]
[ECO "B31"]
[WhiteElo "2611"]
[BlackElo "2640"]
[PlyCount "174"]
[EventDate "2023.09.18"]
[EventType "k.o."]
[EventCountry "NET"]
[SourceTitle "playchess.com"]
[Source "ChessBase"]
[SourceQuality "1"]
[TimeControl "900+3"]

1. e4 {[%emt 0:00:04]} c5 {[%emt 0:00:06]} 2. Nf3 {[%emt 0:00:01]} Nc6 {[%emt 0:00:01]} 3. Bb5 {[%emt 0:00:02]} g6 {[%emt 0:00:05]} 4. O-O {[%emt 0:00:02]} Bg7 {[%emt 0:00:03]} 5. c3 {[%emt 0:00:01]} Nf6 {[%emt 0:00:06]} 6. Re1 {[%emt 0:00:01]} O-O {[%emt 0:00:01]} 7. h3 {[%emt 0:00:01]} e5 {[%emt 0:00:03]} 8. d3 {[%emt 0:00:02]} d6 {[%emt 0:00:20]} 9. Be3 {[%emt 0:00:07]} Bd7 {[%emt 0:00:31]} 10. Nbd2 {[%emt 0:00:09]} a6 {[%emt 0:00:10]} 11. Ba4 {[%emt 0:00:03]} h6 {[%emt 0:00:20]} 12. a3 {[%emt 0:01:54]} b5 {[%emt 0:01:07]} 13. Bc2 {[%emt 0:00:06]} Rc8 {[%emt 0:00:07]} 14. b4 {[%emt 0:00:06]} cxb4 {[%emt 0:00:14]} 15. axb4 {[%emt 0:00:04]} a5 {[%emt 0:00:01]} 16. bxa5 {[%emt 0:01:10]} Nxa5 {[%emt 0:00:02]} 17. Ra3 {[%emt 0:00:00]} Nc6 {[%emt 0:00:17]} 18. Bb3 {[%emt 0:00:17]} Nh5 {[%emt 0:01:02]} 19. Qb1 {[%emt 0:00:51]} Nf4 {[%emt 0:00:40]} 20. d4 {[%emt 0:01:53]} g5 {[%emt 0:02:21]} 21. Ra6 {[%emt 0:02:10]} Qe7 {[%emt 0:01:20]} 22. Bd5 {[%emt 0:01:08]} Nb8 {[%emt 0:03:10]} 23. Ra7 {[%emt 0:00:04]} Rxc3 {[%emt 0:00:54]} 24. Bxf4 {[%emt 0:00:03]} gxf4 {[%emt 0:00:16]} 25. dxe5 {[%emt 0:00:01]} dxe5 {[%emt 0:00:17]} 26. Qxb5 {[%emt 0:00:10]} Bxb5 {[%emt 0:01:16]} 27. Rxe7 {[%emt 0:00:00]} Nd7 {[%emt 0:00:14]} 28. Rb1 {[%emt 0:00:07]} Bf6 {[%emt 0:00:10]} 29. Rxf7 {[%emt 0:00:03]} Rxf7 {[%emt 0:00:01]} 30. Rxb5 {[%emt 0:00:04]} Rc1+ {[%emt 0:00:01]} 31. Kh2 {[%emt 0:00:03]} Kg7 {[%emt 0:00:02]} 32. Bxf7 {[%emt 0:00:20]} Kxf7 {[%emt 0:00:00]} 33. Nb3 {[%emt 0:03:15]} Rf1 {[%emt 0:00:22]} 34. Rd5 {[%emt 0:00:26]} Ke6 {[%emt 0:00:09]} 35. Rd2 {[%emt 0:00:05]} Rb1 {[%emt 0:00:01]} 36. Rd3 {[%emt 0:00:17]} Rf1 {[%emt 0:00:03]} 37. Nbd2 {[%emt 0:00:16]} Rxf2 {[%emt 0:00:18]} 38. Kg1 {[%emt 0:00:01]} Re2 {[%emt 0:00:01]} 39. Kf1 {[%emt 0:00:02]} Re3 {[%emt 0:00:01]} 40. Rxe3 {[%emt 0:00:06]} fxe3 {[%emt 0:00:00]} 41. Nb3 {[%emt 0:00:01]} Bd8 {[%emt 0:00:10]} 42. Ke2 {[%emt 0:00:19]} Bb6 {[%emt 0:00:01]} 43. Ng1 {[%emt 0:00:18]} Nf6 {[%emt 0:00:04]} 44. Kf3 {[%emt 0:00:01]} h5 {[%emt 0:00:13]} 45. Ne2 {[%emt 0:00:27]} h4 {[%emt 0:00:01]} 46. g3 {[%emt 0:00:14]} hxg3 {[%emt 0:00:04]} 47. Nxg3 {[%emt 0:00:00]} Nh7 {[%emt 0:00:12]} 48. h4 {[%emt 0:00:01]} Nf6 {[%emt 0:00:12]} 49. Na1 {[%emt 0:00:05]} Bd8 {[%emt 0:00:01]} 50. h5 {[%emt 0:00:10]} Nh7 {[%emt 0:00:08]} 51. Nc2 {[%emt 0:00:07]} Bb6 {[%emt 0:00:03]} 52. Nxe3 {[%emt 0:00:06]} Ng5+ {[%emt 0:00:00]} 53. Ke2 {[%emt 0:00:00]} Nh3 {[%emt 0:00:03]} 54. Nef5 {[%emt 0:00:09]} Kf6 {[%emt 0:00:03]} 55. Kf3 {[%emt 0:00:03]} Ng5+ {[%emt 0:00:03]} 56. Kg4 {[%emt 0:00:02]} Nf7 {[%emt 0:00:01]} 57. Ne2 {[%emt 0:00:07]} Ba5 {[%emt 0:00:00]} 58. Nfg3 {[%emt 0:00:03]} Nh6+ {[%emt 0:00:03]} 59. Kf3 {[%emt 0:00:01]} Kg5 {[%emt 0:00:01]} 60. Nc1 {[%emt 0:00:03]} Be1 {[%emt 0:00:04]} 61. Nge2 {[%emt 0:00:01]} Kxh5 {[%emt 0:00:03]} 62. Nd3 {[%emt 0:00:01]} Ba5 {[%emt 0:00:05]} 63. Nxe5 {[%emt 0:00:01]} Kg5 {[%emt 0:00:00]} 64. Nc6 {[%emt 0:00:02]} Bc7 {[%emt 0:00:01]} 65. Ned4 {[%emt 0:00:01]} Kf6 {[%emt 0:00:02]} 66. Nb4 {[%emt 0:00:00]} Be5 {[%emt 0:00:04]} 67. Nd5+ {[%emt 0:00:01]} Kf7 {[%emt 0:00:01]} 68. Nc6 {[%emt 0:00:02]} Ba1 {[%emt 0:00:01]} 69. Kf4 {[%emt 0:00:03]} Ke6 {[%emt 0:00:02]} 70. Na5 {[%emt 0:00:13]} Nf7 {[%emt 0:00:01]} 71. Nc4 {[%emt 0:00:00]} Be5+ {[%emt 0:00:05]} 72. Kg4 {[%emt 0:00:05]} Bb8 {[%emt 0:00:04]} 73. Nb4 {[%emt 0:00:04]} Ne5+ {[%emt 0:00:06]} 74. Nxe5 {[%emt 0:00:01]} Bxe5 {[%emt 0:00:00]} 75. Nd3 {[%emt 0:00:02]} Bd6 {[%emt 0:00:02]} 76. Kf3 {[%emt 0:00:01]} Kf6 {[%emt 0:00:02]} 77. Ke3 {[%emt 0:00:00]} Ke6 {[%emt 0:00:00]} 78. Kd4 {[%emt 0:00:00]} Bc7 {[%emt 0:00:04]} 79. Nc5+ {[%emt 0:00:01]} Ke7 {[%emt 0:00:01]} 80. Kd5 {[%emt 0:00:01]} Bh2 {[%emt 0:00:00]} 81. Ne6 {[%emt 0:00:00]} Bg3 {[%emt 0:00:02]} 82. Nd4 {[%emt 0:00:00]} Bh2 {[%emt 0:00:00]} 83. Nf3 {[%emt 0:00:01]} Bg3 {[%emt 0:00:02]} 84. Nd4 {[%emt 0:00:00]} Bh2 {[%emt 0:00:00]} 85. Nf5+ {[%emt 0:00:01]} Kf6 {[%emt 0:00:02]} 86. Ne3 {[%emt 0:00:01]} Ke7 {[%emt 0:00:01]} 87. e5 {[%emt 0:00:03]} Bxe5 {[%emt 0:00:01]} 1/2-1/2

[Event "AI Cup Div-3 2023"]
[Site "Online"]
[Date "2023.09.26"]
[Round "3.2"]
[White "Robson, Ray"]
[Black "Meier, Georg"]
[Result "1-0"]
[Annotator "TA"]
[ECO "C10"]
[WhiteElo "2699"]
[BlackElo "2628"]
[PlyCount "39"]
[EventDate "2023.09.18"]
[EventType "k.o."]
[EventCountry "NET"]
[SourceTitle "playchess.com"]
[Source "ChessBase"]
[SourceQuality "1"]
[TimeControl "900+3"]

{[%evp 11,39,22,22,15,31,28,29,35,52,16,48,30,48,55,68,60,84,80,143,142,135,133,291,251,379,383,552,535,545,524]} 1. e4 {[%emt 0:00:05]} e6 {[%emt 0:00:04]} 2. d4 {[%emt 0:00:02]} d5 {[%emt 0:00:01]} 3. Nc3 {[%emt 0:00:02]} dxe4 {[%emt 0:00:01]} 4. Nxe4 {[%emt 0:00:02]} Nd7 {[%emt 0:00:00]} 5. Nf3 {[%emt 0:00:11]} Ngf6 {[%emt 0:00:01]} 6. Bd3 {[%emt 0:00:05]} c5 {[%emt 0:00:01]} 7. Qe2 {[%emt 0:00:16] C10: French with 3 Nc3: Unusual Black 3rd moves and 3...dxe4.} Nxe4 {[%emt 0:00:12] has lost popularity (7...cxd4).} 8. Qxe4 {[%emt 0:00:39]} cxd4 {[%emt 0:00:16]} 9. Qxd4 {[%emt 0:01:05] White has an edge.} Nc5 {[%emt 0:00:17] [#]} 10. Qxd8+ $5 $146 {[%emt 0:00:21][%mdl 8] An interesting novelty.} ({Predecessor:} 10. Be2 Qxd4 11. Nxd4 Be7 12. Be3 Bd7 13. O-O-O a6 14. f4 Rd8 15. Bf3 Bc8 16. Rd2 {½-½ Istratescu,A (2619)-Pelletier,Y (2589) La Roche sur Yon 2nd 2007 (3)}) 10... Kxd8 {[%emt 0:00:00]} 11. Bc4 {[%emt 0:00:16]} Bd6 {[%emt 0:00:25]} 12. Be3 {[%emt 0:00:41] 0-0-0 would be deadly.} Ke7 {[%emt 0:01:07]} 13. O-O-O {[%emt 0:00:10][%cal Od1d6]} b6 {[%emt 0:00:01]} 14. Rhe1 {[%emt 0:00:32] White is more active.} Bb7 {[%emt 0:01:00]} (14... Rd8 $142) 15. Bg5+ $16 {[%emt 0:01:02]} f6 {[%emt 0:00:08] [#]} 16. Nd4 $1 $36 {[%emt 0:00:14][%mdl 2048] Nf5+ is the strong threat. White has strong initiative.} Ne4 $2 {[%emt 0:01:53] [#] This costs Black the game.} (16... fxg5 $16 {is a better defense.} 17. Nf5+ {[%mdl 64] Discovered Attack, Deflection, Double Attack} Kf6 18. Nxd6 Ba6) 17. Be3 $1 $18 {[%emt 0:01:08]} Bxh2 {[%emt 0:00:59]} (17... g6 {was called for.} 18. Nxe6 Rac8) 18. Nxe6 {[%emt 0:02:21]} ({Not} 18. Bxe6 Be5 $16) 18... Nd6 {[%emt 0:01:40]} (18... Rac8 {keeps fighting.} 19. Bb3 g6) 19. Bb3 {[%emt 0:00:35]} Bxg2 {[%emt 0:00:31]} 20. Bf4 {[%emt 0:00:35] Weighted Error Value: White=0.02 (flawless) /Black=0.56} 1-0

[Event "AI Cup Div-3 2023"]
[Site "Online"]
[Date "2023.09.26"]
[Round "3.2"]
[White "Xiong, Jeffery"]
[Black "Sevian, Samuel"]
[Result "0-1"]
[Annotator "TA"]
[ECO "A29"]
[WhiteElo "2693"]
[BlackElo "2698"]
[PlyCount "50"]
[EventDate "2023.09.18"]
[EventType "k.o."]
[EventCountry "NET"]
[SourceTitle "playchess.com"]
[Source "ChessBase"]
[SourceQuality "1"]
[TimeControl "900+3"]

{[%evp 19,50,10,10,0,8,9,8,0,16,0,4,-1,0,0,8,-4,0,0,-9,-7,-16,0,0,8,43,-270,-275,-272,-260,-822,-826,-779,-773]} 1. c4 {[%emt 0:00:04]} e5 {[%emt 0:00:05]} 2. Nc3 {[%emt 0:00:01]} Nf6 {[%emt 0:00:01]} 3. g3 {[%emt 0:00:01]} d5 {[%emt 0:00:02]} 4. cxd5 {[%emt 0:00:01]} Nxd5 {[%emt 0:00:00]} 5. Bg2 {[%emt 0:00:01]} Nb6 {[%emt 0:00:01]} 6. Nf3 {[%emt 0:00:02]} Nc6 {[%emt 0:00:01]} 7. O-O {[%emt 0:00:01]} Be7 {[%emt 0:00:01]} 8. b3 {[%emt 0:00:02]} O-O {[%emt 0:00:02]} 9. Bb2 {[%emt 0:00:01]} Re8 {[%emt 0:00:35]} 10. Rc1 {[%emt 0:00:38]} Bf8 {[%emt 0:00:03]} 11. Ne4 {[%emt 0:00:16][%cal Oc1c6] is currently scoring better than 11.d3. A29: English Opening: Four Knights Variation with 4 g3.} f5 {[%emt 0:00:08]} 12. Nc3 {[%emt 0:00:07]} e4 {[%emt 0:00:01]} 13. Ne1 {[%emt 0:00:02] The position is equal.} Nb4 {[%emt 0:00:01]} 14. a3 {[%emt 0:01:38]} Nc6 {[%emt 0:00:01]} 15. d3 {[%emt 0:00:49]} Be6 {[%emt 0:00:02]} 16. b4 {[%emt 0:00:12][%cal Bb3b4,Bb4b5][%mdl 32] [#]} a5 $146 {[%emt 0:03:33]} ({Predecessor:} 16... exd3 17. Nxd3 Nd4 18. Nf4 Bb3 19. Qd3 Nxe2+ 20. Ncxe2 Qxd3 21. Nxd3 Rxe2 22. Bxb7 Rd8 {1-0 Van Leent,D (1641)-Pech,J (1827) OP-2017-0-04408}) 17. b5 {[%emt 0:02:19]} Nd4 {[%emt 0:00:04]} 18. dxe4 {[%emt 0:01:25]} Bb3 {[%emt 0:00:39]} 19. Qd3 {[%emt 0:00:02]} Bc4 $36 {[%emt 0:00:57][%mdl 2112] Overworked Piece. Black has some pressure.} 20. Qb1 {[%emt 0:01:03] Nf3 would be deadly.} Bxe2 {[%emt 0:00:16]} (20... Bxb5 $2 21. Rd1 (21. exf5 Bxe2 22. Nc2 Bxf1 $15) (21. Nxb5 Nxe2+ 22. Kh1 Nxc1 $16) 21... Bxe2 22. Nxe2 (22. Rxd4 Qxd4 23. Nxe2 Qc4 $18) 22... Nxe2+ 23. Kh1 $18) 21. exf5 {[%emt 0:00:02][%cal Oc3e4][%mdl 64] Discovered Attack} Nc4 {[%emt 0:00:57]} 22. Bxb7 $2 {[%emt 0:01:02][%mdl 8192] [#] This costs White the game.} (22. Nxe2 $14 {keeps the upper hand.} Nxe2+ 23. Kh1 Nxc1 24. Bxc1) 22... Nd2 $1 $19 {[%emt 0:01:06]} ({Don't do} 22... Nxa3 23. Bxa3 Bxa3 24. Qa2+ Kh8 25. Qxa3 $18) 23. Qa2+ {[%emt 0:00:02]} Bc4 {[%emt 0:00:10]} 24. Bd5+ $2 {[%emt 0:00:02] [#]} (24. Qxc4+ Nxc4 25. Bd5+ Qxd5 26. Nxd5 Nxb2 27. Rb1) 24... Qxd5 $3 {[%emt 0:00:04][%mdl 576] Deflection} 25. Nxd5 {[%emt 0:00:00]} Ne2+ {[%emt 0:00:17] An entertaining game by Sevian.   Weighted Error Value: White=0.75/Black=0.03 (flawless)} 0-1

[Event "AI Cup Div-3 2023"]
[Site "Online"]
[Date "2023.09.26"]
[Round "3.2"]
[White "Mamedov, Rauf"]
[Black "Martinez Alcantara, Jose Eduardo"]
[Result "1/2-1/2"]
[Annotator "ChessBase"]
[ECO "B50"]
[WhiteElo "2640"]
[BlackElo "2611"]
[PlyCount "150"]
[EventDate "2023.09.18"]
[EventType "k.o."]
[EventCountry "NET"]
[SourceTitle "playchess.com"]
[Source "ChessBase"]
[SourceQuality "1"]
[TimeControl "900+3"]

1. e4 {[%emt 0:00:04]} c5 {[%emt 0:00:06]} 2. Nf3 {[%emt 0:00:01]} d6 {[%emt 0:00:03]} 3. Nc3 {[%emt 0:00:15]} Nf6 {[%emt 0:00:02]} 4. g3 {[%emt 0:00:05]} e5 {[%emt 0:00:04]} 5. Bg2 {[%emt 0:00:02]} Nc6 {[%emt 0:00:03]} 6. d3 {[%emt 0:00:01]} g6 {[%emt 0:00:00]} 7. O-O {[%emt 0:00:01]} Bg7 {[%emt 0:00:01]} 8. a3 {[%emt 0:00:01]} O-O {[%emt 0:00:01]} 9. h3 {[%emt 0:00:17]} h6 {[%emt 0:00:02]} 10. Nd2 {[%emt 0:00:01]} Rb8 {[%emt 0:00:42]} 11. b4 {[%emt 0:01:03]} a6 {[%emt 0:00:42]} 12. Rb1 {[%emt 0:00:30]} cxb4 {[%emt 0:01:30]} 13. axb4 {[%emt 0:00:03]} b5 {[%emt 0:00:00]} 14. Nd5 {[%emt 0:00:38]} Be6 {[%emt 0:00:01]} 15. c3 {[%emt 0:00:29]} Ne7 {[%emt 0:00:07]} 16. Qb3 {[%emt 0:01:43]} Nexd5 {[%emt 0:00:55]} 17. exd5 {[%emt 0:00:03]} Bf5 {[%emt 0:00:00]} 18. Ne4 {[%emt 0:00:02]} Nxe4 {[%emt 0:00:04]} 19. dxe4 {[%emt 0:00:01]} Bc8 {[%emt 0:00:05]} 20. Be3 {[%emt 0:00:42]} f5 {[%emt 0:00:09]} 21. exf5 {[%emt 0:00:10]} gxf5 {[%emt 0:00:57]} 22. f4 {[%emt 0:00:02]} e4 {[%emt 0:00:06]} 23. c4 {[%emt 0:00:06]} bxc4 {[%emt 0:00:12]} 24. Qxc4 {[%emt 0:00:01]} Bd7 {[%emt 0:00:00]} 25. Qa2 {[%emt 0:03:05]} Bb5 {[%emt 0:00:52]} 26. Rfd1 {[%emt 0:00:02]} Qd7 {[%emt 0:03:53]} 27. Bf1 {[%emt 0:00:07]} Rfc8 {[%emt 0:00:01]} 28. Rbc1 {[%emt 0:00:30]} Kh7 {[%emt 0:01:00]} 29. Qd2 {[%emt 0:00:52]} Bxf1 {[%emt 0:00:10]} 30. Rxf1 {[%emt 0:00:04]} Qb5 {[%emt 0:00:09]} 31. g4 {[%emt 0:00:08]} Qd7 {[%emt 0:01:13]} 32. Qg2 {[%emt 0:02:14]} Rxc1 {[%emt 0:00:22]} 33. Rxc1 {[%emt 0:00:03]} Rc8 {[%emt 0:00:00]} 34. Re1 {[%emt 0:02:43]} Rc3 {[%emt 0:00:23]} 35. Kh2 {[%emt 0:00:01]} Rb3 {[%emt 0:00:29]} 36. gxf5 {[%emt 0:00:04]} Rb2 {[%emt 0:01:18]} 37. Bd2 {[%emt 0:00:12]} Qf7 {[%emt 0:00:23]} 38. Rxe4 {[%emt 0:00:02]} Qxf5 {[%emt 0:00:33]} 39. Re7 {[%emt 0:00:06]} Qg6 {[%emt 0:00:01]} 40. Re2 {[%emt 0:00:09]} Qxg2+ {[%emt 0:00:11]} 41. Rxg2 {[%emt 0:00:00]} Rb3 {[%emt 0:00:02]} 42. Rg3 {[%emt 0:00:11]} Rb2 {[%emt 0:00:01]} 43. Rg2 {[%emt 0:00:01]} Bf6 {[%emt 0:00:05]} 44. Kg3 {[%emt 0:00:03]} Kg6 {[%emt 0:00:09]} 45. f5+ {[%emt 0:00:03]} Kh7 {[%emt 0:00:07]} 46. Kf3 {[%emt 0:00:03]} Rb3+ {[%emt 0:00:01]} 47. Ke4 {[%emt 0:00:01]} Rxh3 {[%emt 0:00:01]} 48. Rg6 {[%emt 0:00:01]} Rh4+ {[%emt 0:00:04]} 49. Kf3 {[%emt 0:00:04]} Be5 {[%emt 0:00:02]} 50. Re6 {[%emt 0:00:08]} h5 {[%emt 0:00:00]} 51. Bg5 {[%emt 0:00:04]} Rg4 {[%emt 0:00:01]} 52. Rh6+ {[%emt 0:00:03]} Kg7 {[%emt 0:00:01]} 53. Rxh5 {[%emt 0:00:00]} Rxb4 {[%emt 0:00:00]} 54. Rh6 {[%emt 0:00:04]} Rb3+ {[%emt 0:00:03]} 55. Ke4 {[%emt 0:00:04]} Rb4+ {[%emt 0:00:04]} 56. Kf3 {[%emt 0:00:01]} Rb3+ {[%emt 0:00:00]} 57. Ke4 {[%emt 0:00:04]} Rg3 {[%emt 0:00:12]} 58. f6+ {[%emt 0:00:03]} Bxf6 {[%emt 0:00:09]} 59. Rxf6 {[%emt 0:00:01]} Rxg5 {[%emt 0:00:01]} 60. Rxd6 {[%emt 0:00:00]} Kf7 {[%emt 0:00:05]} 61. Re6 {[%emt 0:00:16]} a5 {[%emt 0:00:02]} 62. Kd4 {[%emt 0:00:03]} Rg1 {[%emt 0:00:04]} 63. Ra6 {[%emt 0:00:02]} Ke7 {[%emt 0:00:02]} 64. Ra7+ {[%emt 0:00:03]} Kd6 {[%emt 0:00:01]} 65. Ra6+ {[%emt 0:00:00]} Kd7 {[%emt 0:00:01]} 66. Rxa5 {[%emt 0:00:00]} Rd1+ {[%emt 0:00:01]} 67. Kc4 {[%emt 0:00:01]} Rc1+ {[%emt 0:00:00]} 68. Kd3 {[%emt 0:00:01]} Rd1+ {[%emt 0:00:01]} 69. Kc3 {[%emt 0:00:00]} Rc1+ {[%emt 0:00:00]} 70. Kd2 {[%emt 0:00:01]} Rh1 {[%emt 0:00:01]} 71. Ke3 {[%emt 0:00:01]} Re1+ {[%emt 0:00:03]} 72. Kf3 {[%emt 0:00:01]} Kd6 {[%emt 0:00:02]} 73. Kf2 {[%emt 0:00:03]} Re5 {[%emt 0:00:01]} 74. Kf3 {[%emt 0:00:01]} Rxd5 {[%emt 0:00:01]} 75. Rxd5+ {[%emt 0:00:00]} Kxd5 {[%emt 0:00:01]} 1/2-1/2

[Event "AI Cup Div-3 2023"]
[Site "Online"]
[Date "2023.09.26"]
[Round "3.2"]
[White "Alekseev, Evgeny"]
[Black "Tomashevsky, Evgeny"]
[Result "1/2-1/2"]
[Annotator "ChessBase"]
[ECO "C54"]
[WhiteElo "2573"]
[BlackElo "2694"]
[PlyCount "50"]
[EventDate "2023.09.18"]
[EventType "k.o."]
[EventCountry "NET"]
[SourceTitle "playchess.com"]
[Source "ChessBase"]
[SourceQuality "1"]
[TimeControl "900+3"]

1. e4 {[%emt 0:00:05]} e5 {[%emt 0:00:05]} 2. Nf3 {[%emt 0:00:02]} Nc6 {[%emt 0:00:02]} 3. Bc4 {[%emt 0:00:02]} Bc5 {[%emt 0:00:03]} 4. c3 {[%emt 0:00:04]} Nf6 {[%emt 0:00:04]} 5. d3 {[%emt 0:00:03]} d6 {[%emt 0:00:06]} 6. O-O {[%emt 0:00:12]} O-O {[%emt 0:00:04]} 7. Bb3 {[%emt 0:00:08]} h6 {[%emt 0:00:55]} 8. h3 {[%emt 0:00:10]} Re8 {[%emt 0:00:06]} 9. Be3 {[%emt 0:00:55]} Bxe3 {[%emt 0:00:49]} 10. fxe3 {[%emt 0:00:02]} Be6 {[%emt 0:00:00]} 11. Nbd2 {[%emt 0:00:49]} d5 {[%emt 0:00:54]} 12. exd5 {[%emt 0:00:06]} Bxd5 {[%emt 0:00:02]} 13. d4 {[%emt 0:00:44]} exd4 {[%emt 0:00:29]} 14. exd4 {[%emt 0:00:04]} Qd6 {[%emt 0:01:09]} 15. Rf2 {[%emt 0:02:02]} Bxb3 {[%emt 0:01:38]} 16. Qxb3 {[%emt 0:00:20]} b6 {[%emt 0:00:51]} 17. Raf1 {[%emt 0:00:44]} Qe6 {[%emt 0:01:27]} 18. Nh4 {[%emt 0:01:17]} Qxb3 {[%emt 0:00:21]} 19. axb3 {[%emt 0:00:04]} Ne4 {[%emt 0:00:25]} 20. Nxe4 {[%emt 0:00:14]} Rxe4 {[%emt 0:00:01]} 21. Nf5 {[%emt 0:00:45]} f6 {[%emt 0:00:07]} 22. Ng3 {[%emt 0:01:25]} Re3 {[%emt 0:00:05]} 23. Nf5 {[%emt 0:00:01]} Re4 {[%emt 0:00:03]} 24. Ng3 {[%emt 0:00:13]} Re3 {[%emt 0:00:35]} 25. Nf5 {[%emt 0:00:03]} Re4 {[%emt 0:00:02]} 1/2-1/2

[Event "AI Cup Div-3 2023"]
[Site "Online"]
[Date "2023.09.26"]
[Round "3.3"]
[White "Mamedov, Rauf"]
[Black "Martinez Alcantara, Jose Eduardo"]
[Result "1-0"]
[Annotator "ChessBase"]
[ECO "B97"]
[WhiteElo "2640"]
[BlackElo "2611"]
[PlyCount "181"]
[EventDate "2023.09.18"]
[EventType "k.o."]
[EventCountry "NET"]
[SourceTitle "playchess.com"]
[Source "ChessBase"]
[SourceQuality "1"]
[TimeControl "900+3"]

1. e4 {[%emt 0:00:07]} c5 {[%emt 0:04:22]} 2. Nf3 {[%emt 0:00:06]} d6 {[%emt 0:00:03]} 3. d4 {[%emt 0:00:07]} cxd4 {[%emt 0:00:04]} 4. Nxd4 {[%emt 0:00:03]} Nf6 {[%emt 0:00:03]} 5. Nc3 {[%emt 0:00:04]} a6 {[%emt 0:00:03]} 6. Bg5 {[%emt 0:00:04]} e6 {[%emt 0:00:04]} 7. f4 {[%emt 0:00:04]} Qb6 {[%emt 0:00:03]} 8. Qd2 {[%emt 0:00:13]} Nc6 {[%emt 0:00:04]} 9. Bxf6 {[%emt 0:00:12]} gxf6 {[%emt 0:00:03]} 10. Nb3 {[%emt 0:00:03]} Qc7 {[%emt 0:00:04]} 11. Be2 {[%emt 0:00:09]} h5 {[%emt 0:00:05]} 12. Qd3 {[%emt 0:00:06]} b5 {[%emt 0:00:10]} 13. Qh3 {[%emt 0:00:18]} h4 {[%emt 0:00:23]} 14. Bg4 {[%emt 0:00:08]} b4 {[%emt 0:00:16]} 15. Ne2 {[%emt 0:00:05]} Bd7 {[%emt 0:00:09]} 16. O-O {[%emt 0:00:33]} Be7 {[%emt 0:00:33]} 17. Kh1 {[%emt 0:00:09]} a5 {[%emt 0:00:26]} 18. Rad1 {[%emt 0:00:23]} a4 {[%emt 0:00:04]} 19. Nbd4 {[%emt 0:00:03]} Nxd4 {[%emt 0:00:03]} 20. Nxd4 {[%emt 0:00:04]} Qc5 {[%emt 0:00:11]} 21. Rfe1 {[%emt 0:01:00]} a3 {[%emt 0:00:05]} 22. b3 {[%emt 0:00:14]} Rc8 {[%emt 0:00:04]} 23. Qd3 {[%emt 0:00:15]} Qb6 {[%emt 0:00:23]} 24. h3 {[%emt 0:00:32]} Rc3 {[%emt 0:00:09]} 25. Qd2 {[%emt 0:00:05]} Rc5 {[%emt 0:00:11]} 26. Qf2 {[%emt 0:01:37]} Qc7 {[%emt 0:00:12]} 27. Qf1 {[%emt 0:00:04]} Qb6 {[%emt 0:00:10]} 28. Be2 {[%emt 0:00:14]} e5 {[%emt 0:01:10]} 29. fxe5 {[%emt 0:00:32]} dxe5 {[%emt 0:00:21]} 30. Nf5 {[%emt 0:00:04]} Be6 {[%emt 0:00:03]} 31. Bc4 {[%emt 0:00:15]} Kf8 {[%emt 0:00:31]} 32. Qf3 {[%emt 0:00:05]} Bxf5 {[%emt 0:00:22]} 33. Qxf5 {[%emt 0:00:05]} Rc6 {[%emt 0:00:06]} 34. Rd3 {[%emt 0:00:43]} Rd6 {[%emt 0:00:09]} 35. Red1 {[%emt 0:00:04]} Rxd3 {[%emt 0:00:33]} 36. Rxd3 {[%emt 0:00:04]} Qc5 {[%emt 0:00:03]} 37. Kh2 {[%emt 0:00:11]} Rh6 {[%emt 0:00:15]} 38. Qf3 {[%emt 0:00:29]} Rg6 {[%emt 0:00:25]} 39. Kh1 {[%emt 0:01:20]} Kg7 {[%emt 0:00:44]} 40. Rd7 {[%emt 0:00:07]} Kf8 {[%emt 0:00:53]} 41. Rb7 {[%emt 0:01:18]} Rg5 {[%emt 0:00:46]} 42. Rd7 {[%emt 0:00:33]} Qc6 {[%emt 0:00:05]} 43. Rd5 {[%emt 0:00:11]} Qb6 {[%emt 0:00:09]} 44. Qe2 {[%emt 0:00:16]} Rg3 {[%emt 0:00:20]} 45. Qh5 {[%emt 0:00:11]} Rg6 {[%emt 0:00:34]} 46. Qh8+ {[%emt 0:00:18]} Rg8 {[%emt 0:00:04]} 47. Qh6+ {[%emt 0:00:04]} Rg7 {[%emt 0:00:04]} 48. Rd2 {[%emt 0:00:05]} Qc5 {[%emt 0:00:15]} 49. Kh2 {[%emt 0:00:19]} Qb6 {[%emt 0:00:04]} 50. Qxh4 {[%emt 0:00:26]} Qe3 {[%emt 0:00:04]} 51. Qf2 {[%emt 0:00:28]} Qxe4 {[%emt 0:00:05]} 52. Re2 {[%emt 0:00:19]} Qf4+ {[%emt 0:00:10]} 53. g3 {[%emt 0:00:19]} Qxf2+ {[%emt 0:00:07]} 54. Rxf2 {[%emt 0:00:03]} Rh7 {[%emt 0:00:06]} 55. Kg2 {[%emt 0:00:05]} Rh5 {[%emt 0:00:06]} 56. g4 {[%emt 0:00:06]} Rh4 {[%emt 0:00:03]} 57. Bd3 {[%emt 0:00:07]} Kg7 {[%emt 0:00:06]} 58. Bc4 {[%emt 0:00:15]} Bc5 {[%emt 0:00:04]} 59. Rf5 {[%emt 0:00:06]} Rh6 {[%emt 0:00:05]} 60. g5 {[%emt 0:00:14]} Rh5 {[%emt 0:00:07]} 61. gxf6+ {[%emt 0:00:04]} Kh6 {[%emt 0:00:04]} 62. Rf3 {[%emt 0:00:13]} Kg6 {[%emt 0:00:04]} 63. Bd3+ {[%emt 0:00:05]} Kh6 {[%emt 0:00:03]} 64. Kf1 {[%emt 0:00:06]} Rg5 {[%emt 0:00:04]} 65. Be4 {[%emt 0:00:07]} Rg1+ {[%emt 0:00:04]} 66. Ke2 {[%emt 0:00:03]} Ra1 {[%emt 0:00:06]} 67. Rg3 {[%emt 0:00:06]} Rg1 {[%emt 0:00:04]} 68. Rxg1 {[%emt 0:00:17]} Bxg1 {[%emt 0:00:04]} 69. h4 {[%emt 0:00:05]} Bb6 {[%emt 0:00:05]} 70. Kd3 {[%emt 0:00:04]} Bd8 {[%emt 0:00:04]} 71. Kc4 {[%emt 0:00:04]} Bxf6 {[%emt 0:00:04]} 72. Kxb4 {[%emt 0:00:04]} Bxh4 {[%emt 0:00:03]} 73. c4 {[%emt 0:00:04]} Kg5 {[%emt 0:00:04]} 74. c5 {[%emt 0:00:04]} Kf4 {[%emt 0:00:05]} 75. c6 {[%emt 0:00:06]} Bd8 {[%emt 0:00:03]} 76. Bd5 {[%emt 0:00:04]} f5 {[%emt 0:00:04]} 77. Kc5 {[%emt 0:00:03]} e4 {[%emt 0:00:04]} 78. b4 {[%emt 0:00:03]} Ke3 {[%emt 0:00:08]} 79. b5 {[%emt 0:00:05]} f4 {[%emt 0:00:03]} 80. b6 {[%emt 0:00:03]} f3 {[%emt 0:00:04]} 81. c7 {[%emt 0:00:04]} f2 {[%emt 0:00:04]} 82. cxd8=Q {[%emt 0:00:05]} f1=Q {[%emt 0:00:04]} 83. Qg5+ {[%emt 0:00:03]} Kd3 {[%emt 0:00:05]} 84. Bc4+ {[%emt 0:00:04]} Kc3 {[%emt 0:00:03]} 85. Bxf1 {[%emt 0:00:04]} e3 {[%emt 0:00:03]} 86. Qxe3+ {[%emt 0:00:04]} Kb2 {[%emt 0:00:03]} 87. Qb3+ {[%emt 0:00:04]} Ka1 {[%emt 0:00:03]} 88. Qxa3 {[%emt 0:00:03]} Kb1 {[%emt 0:00:04]} 89. Bd3+ {[%emt 0:00:04]} Ka1 {[%emt 0:00:03]} 90. Qc1+ {[%emt 0:00:04]} Kxa2 {[%emt 0:00:03]} 91. Bc4# {[%emt 0:00:04]} 1-0